Cogmind - Beta 9.6 @@@ ROGUE MODE // 2020.04.20 @ 23:52:32 Player: heavypress Result: Destroyed by G-47 Trooper with Particle Gun Performance ------------- Evolutions (2) 1000 Regions Visited (4) 800 Robots Destroyed (14) 70 Value Destroyed (367) 367 Prototype IDs (1) 20 Alien Tech Used (0) 0 Bonus (49) 49 TOTAL SCORE: 2306 Bonus ------- Follower Combat Kills 49 Cogmind --------- Core Integrity 0/550 Matter 300/300 Energy 100/100 System Corruption 0% Temperature Cool (9) Movement Flying (40) Location -8/Storage Parts ------- > --- POWER (2) -------- (None) > --- PROPULSION (4) --- Flight Unit > --- UTILITY (3) ------ Structural Scanner Advanced Signal Interpreter > --- WEAPON (2) ------- (None) > --- INVENTORY (4) ---- (None) Peak State ------------ > --- POWER ------------ Ion Engine > --- PROPULSION ------- Flight Unit Flight Unit > --- UTILITY ---------- Structural Scanner Advanced Signal Interpreter Improved Terrain Scanner > --- WEAPON ----------- Improved Assault Rifle > --- INVENTORY -------- (None) [Rating: 12] Favorites ----------- Power Light Ion Engine Engine Light Ion Engine Power Core Nuclear Core Propulsion Flight Unit Wheel Compact Wheel Flight Unit Flight Unit Utility Structural Scanner Device Structural Scanner Processor Advanced Signal Interpreter Weapon Small Laser Energy Gun Small Laser Ballistic Gun Light Assault Rifle Build | -11 -10 -9 -8 -8 ------- Run | Scr Mat Mat Mat Sto Slots Evolved 4 | . . 2 2 . Power 1 | . . 1 . . Propulsion 2 | . . . 2 . Utility 1 | . . 1 . . Weapon . | . . . . . Parts Attached 29 | 4 8 7 1 9 Power 5 | 1 1 1 . 2 Engine 4 | 1 1 1 . 1 Core 1 | . . . . 1 Reactor . | . . . . . Propulsion 9 | 2 2 2 1 2 Treads . | . . . . . Leg . | . . . . . Wheel 4 | 2 2 . . . Hover . | . . . . . Flight 5 | . . 2 1 2 Utility 3 | . 1 . . 2 Device 2 | . 1 . . 1 Storage . | . . . . . Processor 1 | . . . . 1 Hackware . | . . . . . Protection . | . . . . . Artifact . | . . . . . Weapon 12 | 1 4 4 . 3 Energy Gun 6 | . 2 3 . 1 Energy Cannon . | . . . . . Ballistic Gun 6 | 1 2 1 . 2 Ballistic Cannon . | . . . . . Launcher . | . . . . . Special Weapon . | . . . . . Impact Weapon . | . . . . . Slashing Weapon . | . . . . . Piercing Weapon . | . . . . . Special Melee Weapon . | . . . . . Unidentified Prototypes 1 | . . . . 1 Parts Lost 15 | . 2 1 1 11 Power 3 | . . . . 3 Propulsion 4 | . . . 1 3 Utility 1 | . . . . 1 Weapon 7 | . 2 1 . 4 Highest Loss Streak 7 | . 2 1 1 7 Average Slot Usage (%) 60 | . 67 66 57 43 Engine 10 | . 14 11 9 5 Wheel 13 | . 28 8 . . Flight 8 | . . 13 21 14 Device 6 | . . 11 9 11 Energy Gun 11 | . 9 19 18 5 Ballistic Gun 6 | . 14 2 . 2 Naked Turns . | . . . . . Heaviest Build 11 | 4 8 11 8 10 Greatest Support 32 | 32 32 20 12 8 Greatest Overweight (x) 2 | 1 . 1 . 2 Average Overweight (x) . | . . . . . Largest Inventory Capacity 4 | 4 4 4 4 4 Average Capacity 4 | 4 4 4 4 4 Most Carried 4 | 4 4 4 4 4 Average Carried 3 | 2 3 3 3 1 Final Capacity 4 | 4 4 4 4 4 Final Carried 4 | 2 4 4 4 . Class Distribution -------------------- 100% | Mutant Dominant Class ---------------- Mutant | -10/Materials Mutant | -9/Materials Mutant | -8/Materials Mutant | -8/Storage Resources | -11 -10 -9 -8 -8 ----------- Run | Scr Mat Mat Mat Sto Matter Collected 497 | 240 98 73 . 86 Remotely . | . . . . . Salvage Created 461 | . 252 101 . 108 Parts 31 | . 10 11 . 10 Haulers Intercepted . | . . . . . Recyclers Shooed . | . . . . . Parts Field Recycled . | . . . . . Retrieved Matter . | . . . . . Parts Self-Destructed . | . . . . . Prevented . | . . . . . Kills | -11 -10 -9 -8 -8 ------- Run | Scr Mat Mat Mat Sto Combat Hostiles Destroyed 14 | . 6 4 . 4 Guns 14 | . 6 4 . 4 Classes Destroyed 3 | . 1 2 . . Swarmer 6 | . . 3 . 3 Grunt 6 | . 6 . . . Sentry 2 | . . 1 . 1 Best Kill Streak 6 | . 6 3 . 2 Combat Bots Only 6 | . 6 3 . 2 Max Kills in Single Turn 1 | . 1 1 . 1 Gunslinging . | . . . . . Exploded . | . . . . . Melee . | . . . . . Uniques/NPCs Destroyed . | . . . . . Combat | -11 -10 -9 -8 -8 -------- Run | Scr Mat Mat Mat Sto Damage Taken 1644 | . 357 135 29 1123 Core 695 | . 91 46 14 544 Absorbed by Shields . | . . . . . Core Remaining (%) 83 | 100 63 88 . . Volleys Fired 42 | . 15 10 . 17 Largest 2 | . 2 2 . 2 Hottest 85 | . 40 85 . 65 Shots Fired 68 | . 28 20 . 20 Gun 68 | . 28 20 . 20 Cannon . | . . . . . Launcher . | . . . . . Special . | . . . . . Kinetic 42 | . 28 2 . 12 Thermal 14 | . . 14 . . Explosive . | . . . . . Electromagnetic 12 | . . 4 . 8 Robot Hit Streak 16 | . 6 16 . 6 Robot Miss Streak 3 | . 2 2 . 3 Penetration Max . | . . . . . Secondary Targets 1 | . . . . 1 Max Gunslinging Chain 1 | . . . . 1 Shots Hit Robots 52 | . 20 16 . 16 Core Hits 28 | . 14 7 . 7 Critical Hits 2 | . 2 . . . Critical Kills 2 | . 2 . . . Critical Parts Destroyed . | . . . . . Melee Attacks . | . . . . . Impact . | . . . . . Slashing . | . . . . . Piercing . | . . . . . Sneak Attacks . | . . . . . Combat Hostiles . | . . . . . Follow-up Attacks . | . . . . . Damage Inflicted 533 | . 169 189 . 175 Guns 533 | . 169 189 . 175 Cannons . | . . . . . Explosions . | . . . . . Melee . | . . . . . Ramming . | . . . . . Kinetic 308 | . 169 18 . 121 Thermal 108 | . . 108 . . Explosive . | . . . . . Electromagnetic 117 | . . 63 . 54 Impact . | . . . . . Slashing . | . . . . . Piercing . | . . . . . Highest Corruption . | . . . . . Average Corruption . | . . . . . Corruption Purged . | . . . . . Overload Shots . | . . . . . Overflow Damage . | . . . . . Projectiles . | . . . . . Explosions . | . . . . . Melee . | . . . . . Knockbacks . | . . . . . Impact . | . . . . . Kinetic . | . . . . . Secondary . | . . . . . Self-Inflicted Damage . | . . . . . Shots . | . . . . . Rammed . | . . . . . Targets Rammed . | . . . . . Kicked . | . . . . . Crushed . | . . . . . Highest Temperature 102 | . 15 102 . 20 Average Temperature 24 | . 8 35 . 11 Received Heat Transfer 522 | . 201 24 9 288 Siege Activations . | . . . . . Robots Corrupted . | . . . . . Combat Hostiles . | . . . . . Parts Fried . | . . . . . Impact Corruptions . | . . . . . Robots Melted . | . . . . . Combat Hostiles . | . . . . . Parts Melted . | . . . . . Heat Transferred 250 | . . 250 . . Parts Sabotaged . | . . . . . Parts Stolen . | . . . . . Parts Stripped . | . . . . . Power Chain Reactions . | . . . . . Missiles Intercepted . | . . . . . Alert | -11 -10 -9 -8 -8 ------- Run | Scr Mat Mat Mat Sto Peak Influence 234 | . 130 234 118 201 Average Influence 91 | . 61 132 108 112 Maximum Alert Level 1 | . . 1 . 1 Low Security (%) 96 | 100 100 88 100 97 Level 1 3 | . . 11 . 2 Level 2 . | . . . . . Level 3 . | . . . . . Level 4 . | . . . . . Level 5 . | . . . . . High Security . | . . . . . Max Security . | . . . . . Squads Dispatched 8 | . 3 2 . 3 Investigation 3 | . 2 1 . . Extermination . | . . . . . Reinforcement 3 | . 1 1 . 1 Assault 2 | . . . . 2 Garrison . | . . . . . Intercept . | . . . . . Construction Impeded . | . . . . . Haulers Reinforced . | . . . . . Stealth | -11 -10 -9 -8 -8 --------- Run | Scr Mat Mat Mat Sto Distress Signals 2 | . . 1 . 1 Communications Jammed . | . . . . . Distress Signals . | . . . . . Times Spotted 52 | . 7 14 2 29 Peak Tracking Total 11 | . 7 7 2 11 Tactical Retreats 6 | . . 1 . 5 Traps | -11 -10 -9 -8 -8 ------- Run | Scr Mat Mat Mat Sto Traps Triggered 3 | . 2 1 . . Indirectly . | . . . . . Trap Hack Attempts . | . . . . . Triggered . | . . . . . Disarmed . | . . . . . Reprogrammed . | . . . . . Reused . | . . . . . Traps Extracted . | . . . . . Installed . | . . . . . Triggered . | . . . . . Machines | -11 -10 -9 -8 -8 ---------- Run | Scr Mat Mat Mat Sto Machines Disabled . | . . . . . Max in Single Turn . | . . . . . Machines Sabotaged . | . . . . . Garrisons Compromised . | . . . . . Overloaded Fab Kills . | . . . . . Fab Network Shutdowns . | . . . . . Hacking | -11 -10 -9 -8 -8 --------- Run | Scr Mat Mat Mat Sto Machines Accessed 1 | . . . . 1 Terminals . | . . . . . Fabricators . | . . . . . Repair Stations . | . . . . . Recycling Units . | . . . . . Scanalyzers . | . . . . . Garrison Access 1 | . . . . 1 Total Hacks 1 | . . . . 1 Successful 1 | . . . . 1 Failed . | . . . . . Catastrophic . | . . . . . Database Lockouts . | . . . . . Manual . | . . . . . Terminals . | . . . . . Fabricators . | . . . . . Repair Stations . | . . . . . Recycling Units . | . . . . . Scanalyzers . | . . . . . Garrison Access 1 | . . . . 1 Terminal Hacks . | . . . . . Fabricator Hacks . | . . . . . Repair Station Hacks . | . . . . . Recycling Unit Hacks . | . . . . . Scanalyzer . | . . . . . Garrison Access Hacks 1 | . . . . 1 Coupler Status 1 | . . . . 1 Unauthorized Hacks . | . . . . . Terminals . | . . . . . Fabricators . | . . . . . Repair Stations . | . . . . . Recycling Units . | . . . . . Scanalyzers . | . . . . . Garrison Access . | . . . . . Data Cores Recovered . | . . . . . Used . | . . . . . Hacking Detections . | . . . . . Full Trace Events . | . . . . . Feedback Events . | . . . . . Feedback Blocked . | . . . . . Robot Schematics Acquired . | . . . . . Robots Built . | . . . . . Matter . | . . . . . Time . | . . . . . Total Robot Build Rating . | . . . . . Part Schematics Acquired . | . . . . . Parts Built . | . . . . . Matter . | . . . . . Time . | . . . . . Total Part Build Rating . | . . . . . Parts Repaired . | . . . . . Time . | . . . . . Parts Recycled . | . . . . . Recycled Matter . | . . . . . Retrieved Matter . | . . . . . Retrieved Components . | . . . . . Parts Scanalyzed . | . . . . . Part Schematics Acquired . | . . . . . Parts Damaged . | . . . . . Bothacking | -11 -10 -9 -8 -8 ------------ Run | Scr Mat Mat Mat Sto Used RIF Installer . | . . . . . Robots Hacked . | . . . . . Non-combat . | . . . . . Combat . | . . . . . Robot Hacks Applied . | . . . . . Relay Couplers Released . | . . . . . Robots Rewired . | . . . . . Allies Hacked . | . . . . . Hacks Repelled . | . . . . . Allies | -11 -10 -9 -8 -8 -------- Run | Scr Mat Mat Mat Sto Total Allies 2 | . . . . 2 Largest Group 2 | . . . . 2 Highest-Rated Group 62 | . . . . 62 Highest-Rated Ally 31 | . . . . 31 Total Orders . | . . . . . Ally Attacks 11 | . . . . 11 Total Damage 206 | . . . . 206 Kills 3 | . . . . 3 Allies Corrupted . | . . . . . Allies Melted . | . . . . . Intel | -11 -10 -9 -8 -8 ------- Run | Scr Mat Mat Mat Sto Robot Analysis Total . | . . . . . Derelict Logs Recovered . | . . . . . Drone Launches . | . . . . . Drone Recoveries . | . . . . . Exploration | -11 -10 -9 -8 -8 ------------- Run | Scr Mat Mat Mat Sto Turns Passed 751 | 51 283 212 23 182 Spaces Moved 969 | 46 246 331 59 287 Core 25 | 20 . . . 5 Treads . | . . . . . Legs . | . . . . . Wheels 341 | 26 246 69 . . Hover . | . . . . . Flight 603 | . . 262 59 282 Fastest Speed 34 | 50 80 37 34 37 Average Speed 57 | 86 90 46 36 41 Slowest Speed 200 | 100 100 117 37 200 Overloaded Moves . | . . . . . Propulsion Burnouts . | . . . . . Robots Hopped 14 | . . . . 14 Cave-ins Triggered . | . . . . . Exploration Rate (%) 30 | 3 48 41 10 50 Regions Visited 4 Branch Regions 1 Pre-discovered Areas . | . . . . . Known Exits Taken . | . . . . . Unknown Exits Taken 4 | 1 1 1 1 . Scrap Searched . | . . . . . Spaces Dug . | . . . . . Terrain Destroyed . | . . . . . Melee . | . . . . . Projectile . | . . . . . AOE . | . . . . . Actions | -11 -10 -9 -8 -8 --------- Run | Scr Mat Mat Mat Sto Total 1090 | 57 284 372 60 317 Wait 23 | . . 11 . 12 Move 941 | 45 245 330 58 263 Hop 10 | . . . . 10 Pick Up 31 | 7 11 7 1 5 Fast Attach . | . . . . . Attach 22 | 4 5 3 1 9 Detach 1 | . . 1 . . Swap 7 | . 3 4 . . Drop 13 | 1 5 6 . 1 Fire 42 | . 15 10 . 17 Melee . | . . . . . Ram . | . . . . . Kick . | . . . . . Crush . | . . . . . Escape Stasis . | . . . . . Rewire . | . . . . . Trap . | . . . . . Miscellaneous . | . . . . . Route ------- -11/Scrapyard -10/Materials (discovered 2 exits: [*Mat x2]) -9/Materials -8/Materials -8/Storage History --------- Turn | Location | Event 16 | -11/Scrapyard | Discovered new exit (range 14) 52 | -11/Scrapyard | Entered Materials 176 | -10/Materials | Discovered new exit (range 10) 306 | -10/Materials | Discovered new exit (range 16) 314 | -10/Materials | Build established: Mutant 335 | -10/Materials | Entered another Materials area 335 | -9/Materials | Evolved 2 slots: Power x1, Utility x1 542 | -9/Materials | Discovered new exit (range 16) 547 | -9/Materials | Entered another Materials area 547 | -8/Materials | Evolved 2 slots: Propulsion x2 559 | -8/Materials | Discovered new exit (range 16) 570 | -8/Materials | Entered Storage 705 | -8/Storage | Core integrity fell below 50% 709 | -8/Storage | Met a pair of Derelict thieves 722 | -8/Storage | Lost 7 parts (2p2n3w) 746 | -8/Storage | Core integrity fell below 20% 752 | -8/Storage | Destroyed by G-47 Trooper with Particle Gun Last Messages --------------- S-10 Pest destroyed. ALERT: Breach in storage area. Dispatching assault force. OF-1L6(g): "So much for stealth, let's take what we have and get out of here before it's too late." S-10 Pest destroyed. OF-1L6(g) destroyed. Acquired Prototype Ballistic Gun. Identified Imp. Assault Rifle. Y-45 Defender destroyed. Acquired 57 matter. Flight Unit destroyed. Acquired 17 matter. Acquired 3 matter. Y-45 Defender destroyed. Ion Engine destroyed. Acquired 3 matter. Imp. Assault Rifle destroyed. R-06 Scavenger collects Lgt. Assault Rifle. R-06 Scavenger collects Aluminum Leg. Imp. Terrain Scanner destroyed. Map ----- +----------------------------------------------------+ | ###### #########+#?????????????????# #????? | | #?????????????????# #????? | | ## ######### #?????????????????# #????? | | ####??## ##???????# #?????????????????# #????? | | ????????# #????????# #???????########### #????? | | ????????# #???##???# #????#### # #????? | | ????????# ##### #### #????#""" # #????? | | ????????# # ! # #????#"R """ # #????? | | ????????# # """ #%#????#""" """ + #????? | | ????????# # """ #*###??#### """ """ # #????? | | ??????### # """ #[ #?????# G" # #????? | | ??????+ # / #?????# """ # #????? | | "?????### # """ # #?????# # #????? | | ""??????# # """ # #??# ############ #????? | | ????# + """ # #??# # #????? | | ???# # [ # #??# """ """ # #????? | | ### ########## #??# """ """ # #????? | | %/ #??# """ """ # #????? | | # #??# # #????? | | ???#### ###########+##### #????? | | #????? | | ###+######### #????? | | ??# T#??????# #????? | | #######??#"##??????######### ### ###########????? | | ???????????????????######### #?# #??????????????? | | ???????????????????#!! !#@=# #?# #??????????????? | | ???????????????????# ="gg# #?# #??????????????? | | ???????????????????# [%!gYY# #?# #??????????????? | | ???????????????????# ![!"[Yg!###+#######?######?? | | ???????????????????# !!!#T##r # !!!#?# """#?? | | ???????????????????#! ! #### ^+ """ !!! ##""R"#?? | | ???????????????????######??#^ # """ !!!###"" "### | | ???????????????????????????# # """ ## # | | ???????????????????????????# # ## "T" # | | ???????????????????????????# # """ "## [ # | | ???????????????????????????# # """ T## %* # | | ?????????????????########### # """ "## %[ # | | ?????????????????# ## # ? ??# """"" # | | ?????????????????# """ ## #####+##### """"" # | | ?????#######+##### "?"""" / # """"" # | | ?? # "????" ## # # | | ?? + "????" ###+#####+## / # | | ?? # """"?" ## ## # # | | ?????############# """ ## """" ## ###" "### | | ?????????????????# ## ???" ## T?#"Y"#?? | | ?????????????????# ## ???" ## ##?"""#?? | | ?????????????????########### ???" #""""??####?? | | ???????????????????????????# ???" #???????????? | | ???????????????????????????# ???" #???????????? | | ???????????????????????????#???? #???????????? | +----------------------------------------------------+ Best States ------------- Heat Dissipation 31 Energy Generation 14 Energy Capacity 250 Matter Stores 300 Matter Capacity 300 Sight Range 16 Terrain Scan Density 10 Evasion (%) 63 Item Schematics ----------------- None Robot Schematics ------------------ None Fabricated ------------ Nothing Alien Tech Used ----------------- None Achievements -------------- None Challenges ------------ None Game ------ Seed GhostMomentumGun Manual? 0 Play Time 00:19:11 Cumulative 11.4 hours Start 2020.04.20 @ 23:32:54 End 2020.04.20 @ 23:52:32 Sessions 1 Manual Loads 0 Difficulty Rogue Special Mode None Game No. 21 Rogue 21 Adventurer 0 Explorer 0 Win Type - Total 0 Types 0/0/0/0/0/0/0 Lore% 17 Gallery% 20 Achievement% 15 Wizard Run 0 Options --------- ASCII 0 Keyboard 0 Movement Mouse Keybinds 0 Fullscreen 1 Font 18/SmallcapsGlow Map View 76x50 Tactical HUD 0 Map Filters NONE Filters NONE Steam 1 RUN: 44973f3a-1a21-49ef-a2e5-342171e8f2b5